bitfinex/quotes_BTCUSD_20240811
["timestamp","ask_amount","ask_price","bid_price","bid_amount"]
[1723363385005,0.01,61423.0,61414.0,0.01]
[1723363385006,0.162819,61418.0,61415.0,0.0637]
[1723363385229,0.162813,61420.0,61415.0,0.1403]
[1723363385448,0.162813,61420.0,61403.0,0.08184646]
[1723363385449,0.162853,61405.0,61404.0,0.01]
[1723363385653,0.162845,61408.0,61401.0,0.01]
[1723363385861,0.07315115,61417.0,61399.0,0.0637]
[1723363385862,0.04876743,61412.0,61405.0,0.0766]
[1723363386068,0.162846,61408.0,61405.0,0.0766]
[1723363386273,0.16285,61406.0,61405.0,0.0766]
[1723363386481,0.04876743,61410.0,61405.0,0.0766]
[1723363386679,0.32567,61412.0,61405.0,0.0766]
[1723363386893,0.325687,61409.0,61405.0,0.0766]
[1723363387098,0.162849,61407.0,61405.0,0.0776]
[1723363387303,0.04876743,61410.0,61405.0,0.0776]
[1723363387513,0.001,61406.0,61405.0,0.0776]
[1723363387716,0.001,61406.0,61405.0,0.0766]
[1723363387970,0.16285,61407.0,61405.0,0.0776]
[1723363388166,0.16285,61407.0,61405.0,0.001]
[1723363388167,0.97806692,61406.0,61405.0,0.001]
[1723363388778,0.65236592,61406.0,61405.0,0.001]
[1723363389194,0.3803935,61409.0,61404.0,0.01]
[1723363389400,0.32569,61408.0,61404.0,0.01]
[1723363389580,0.003,61406.0,61404.0,0.01]
[1723363389778,0.162856,61404.0,61400.0,0.0866]
[1723363390302,0.162852,61406.0,61400.0,0.0866]
[1723363390528,0.162852,61406.0,61404.0,0.001]
[1723363390714,0.162853,61405.0,61404.0,0.001]
[1723363390922,0.162853,61405.0,61400.0,0.0866]
[1723363391126,0.162849,61407.0,61404.0,0.01]
[1723363391533,0.3743895,61409.0,61404.0,0.01]
[1723363391748,0.162846,61408.0,61405.0,0.0766]
[1723363391881,0.53819842,61411.0,61405.0,0.0766]
[1723363391882,0.16284,61410.0,61406.0,0.08184646]
[1723363392092,0.0487045,61413.0,61407.0,0.01]
[1723363392295,0.0487045,61412.0,61407.0,0.01]
[1723363392900,0.162839,61411.0,61407.0,0.01]
[1723363393579,0.04870768,61413.0,61411.0,0.01]
[1723363393743,0.16283,61414.0,61411.0,0.01]
[1723363393944,0.004,61412.0,61411.0,0.01]
[1723363394217,0.16283,61414.0,61411.0,0.01]
[1723363394372,0.21153768,61414.0,61411.0,0.01]
[1723363394671,0.04870768,61416.0,61413.0,0.09184646]
[1723363394967,0.04870768,61417.0,61413.0,0.01]
[1723363395146,0.162828,61415.0,61413.0,0.01]
[1723363395509,0.162833,61413.0,61411.0,0.001]
[1723363396125,0.004,61412.0,61411.0,0.001]
[1723363396479,0.162834,61413.0,61411.0,0.001]
[1723363396685,0.166834,61413.0,61411.0,0.002]
[1723363396902,0.166834,61413.0,61411.0,0.001]
[1723363397105,0.162834,61412.0,61411.0,0.001]
[1723363397311,0.002,61412.0,61411.0,0.002]
[1723363397513,0.002,61412.0,61411.0,0.001]
[1723363397514,0.164834,61412.0,61411.0,0.001]
[1723363397738,0.164834,61412.0,61409.0,0.01]
[1723363397739,0.162834,61412.0,61409.0,0.01]
[1723363397946,0.166834,61412.0,61411.0,0.001]
[1723363398169,0.166834,61412.0,61411.0,0.002]
[1723363398369,0.33064892,61412.0,61411.0,0.002]
[1723363399263,0.33064892,61412.0,61411.0,0.001]
[1723363399835,0.32864892,61412.0,61409.0,0.001]
[1723363399943,0.162839,61410.0,61409.0,0.001]
[1723363400170,0.16284,61410.0,61408.0,0.1403]
[1723363401274,0.16484,61410.0,61408.0,0.1413]
[1723363401472,0.16884,61410.0,61408.0,0.1423]
[1723363401751,0.488527,61409.0,61408.0,0.1413]
[1723363402289,0.05472623,61410.0,61408.0,0.1413]
[1723363402496,0.162842,61409.0,61408.0,0.1403]
[1723363402901,0.162842,61409.0,61408.0,0.1413]
[1723363403359,0.162842,61409.0,61408.0,0.1403]
[1723363403774,0.164842,61409.0,61408.0,0.1413]
[1723363403913,0.164842,61409.0,61408.0,0.1423]
[1723363404112,0.164842,61409.0,61408.0,0.1413]
[1723363404527,0.168842,61409.0,61408.0,0.1413]
[1723363405225,0.494527,61409.0,61408.0,0.1422141]
[1723363405427,0.494527,61409.0,61408.0,0.0019141]
[1723363407271,0.70709564,61409.0,61408.0,0.0019141]
[1723363407472,1.03278064,61409.0,61408.0,0.0019141]
[1723363407672,0.70709564,61409.0,61408.0,0.0019141]
[1723363408244,1.04278064,61409.0,61408.0,0.0019141]
[1723363408435,1.80014346,61409.0,61408.0,0.0019141]
[1723363408642,1.04014346,61409.0,61408.0,0.0019141]
[1723363408884,1.13765091,61409.0,61408.0,0.0019141]
[1723363409100,1.13784617,61409.0,61408.0,0.0019141]
[1723363409516,1.04033872,61409.0,61408.0,0.0019141]
[1723363409924,0.98802935,61409.0,61408.0,0.0019141]
[1723363412111,1.62802443,61409.0,61408.0,0.0019141]
[1723363412540,1.6732949,61409.0,61408.0,0.0019141]
[1723363412944,1.62802443,61409.0,61408.0,0.0019141]
[1723363413168,1.67353021,61409.0,61408.0,0.0019141]
[1723363416650,1.62802443,61409.0,61408.0,0.0019141]
[1723363416854,1.67375506,61409.0,61408.0,0.0019141]
[1723363417560,1.2435882,61409.0,61408.0,0.1453141]
[1723363417767,1.13554215,61409.0,61408.0,0.1453141]
[1723363418184,1.08977328,61409.0,61408.0,0.1453141]
[1723363418294,1.2535882,61409.0,61408.0,0.0019141]
[1723363418755,1.2544202,61409.0,61408.0,0.0019141]
[1723363419298,1.5801052,61409.0,61408.0,0.0019141]
[1723363419510,1.2544202,61409.0,61408.0,0.0019141]
[1723363419757,1.30018911,61409.0,61408.0,0.0019141]
[1723363420434,1.69900095,61409.0,61408.0,0.0019141]
[1723363421510,1.69898321,61409.0,61408.0,0.0019141]
[1723363421718,1.62587411,61409.0,61408.0,0.0019141]
[1723363421949,1.62591411,61409.0,61408.0,0.0019141]
[1723363422144,1.30022911,61409.0,61408.0,0.0019141]
[1723363422349,1.69902326,61409.0,61408.0,0.0796141]
[1723363422502,1.30022911,61409.0,61408.0,0.0796141]
[1723363423134,1.62591411,61409.0,61408.0,0.0019141]
[1723363423545,1.30022911,61409.0,61408.0,0.0019141]
[1723363424272,1.62591411,61409.0,61408.0,0.0019141]
[1723363424475,1.69591411,61409.0,61408.0,0.0019141]
[1723363424685,1.79339291,61409.0,61408.0,0.0019141]
[1723363425704,1.78339291,61409.0,61408.0,0.0019141]
[1723363426313,1.78345841,61409.0,61408.0,0.0019141]
[1723363426517,1.79345841,61409.0,61408.0,0.0019141]
[1723363426730,1.78345841,61409.0,61408.0,0.0019141]
[1723363427326,1.68591411,61409.0,61408.0,0.0019141]
[1723363427678,1.37022911,61409.0,61408.0,0.0019141]
[1723363427882,1.68591411,61409.0,61408.0,0.0019141]
[1723363428093,1.68591411,61409.0,61408.0,0.0644141]
[1723363428460,1.83784448,61409.0,61408.0,0.0644141]
[1723363429067,1.84784448,61409.0,61408.0,0.0644141]
[1723363429290,1.6801452,61409.0,61408.0,0.0644141]
[1723363429514,1.72698197,61409.0,61408.0,0.0644141]
[1723363429715,1.72698197,61409.0,61408.0,0.0019141]
[1723363429868,1.40122414,61409.0,61408.0,0.0019141]
[1723363430268,1.72690914,61409.0,61408.0,0.0019141]
[1723363432470,1.66690914,61409.0,61408.0,0.0019141]
[1723363432685,1.65690914,61409.0,61408.0,0.0019141]
[1723363435441,1.66690914,61409.0,61408.0,0.0019141]
[1723363436477,1.76690914,61409.0,61408.0,0.0019141]
[1723363436680,1.76677187,61409.0,61408.0,0.0019141]
[1723363437514,1.44108687,61409.0,61408.0,0.0019141]
[1723363437713,1.43108687,61409.0,61408.0,0.0019141]
[1723363437863,1.75677187,61409.0,61408.0,0.0019141]
[1723363438242,1.76677187,61409.0,61408.0,0.0019141]
[1723363438450,1.43108687,61409.0,61408.0,0.0779141]
[1723363438674,0.16963431,61409.0,61408.0,0.1538141]
[1723363438874,0.16963431,61409.0,61408.0,0.1438141]
[1723363439102,0.04749867,61409.0,61408.0,0.1438141]
[1723363439502,0.16963431,61409.0,61408.0,0.1438141]
[1723363440521,0.14520791,61409.0,61408.0,0.1438141]
[1723363440720,0.09858124,61409.0,61408.0,0.1438141]
[1723363440997,0.14543022,61409.0,61408.0,0.1438141]
[1723363441378,0.04772098,61409.0,61408.0,0.1438141]
[1723363442556,0.21056298,61409.0,61408.0,0.1438141]
[1723363442783,0.16985662,61409.0,61408.0,0.1438141]
[1723363443953,0.04772098,61409.0,61408.0,0.1438141]
[1723363444210,0.16985662,61409.0,61408.0,0.1438141]
[1723363444522,0.04772098,61409.0,61408.0,0.1438141]
[1723363444734,0.21056298,61409.0,61408.0,0.1438141]
[1723363446347,0.53624798,61409.0,61408.0,0.1438141]
[1723363447064,0.86193298,61409.0,61408.0,0.1438141]
[1723363448041,0.53624798,61409.0,61408.0,0.1438141]
[1723363449421,1.0257479,61409.0,61408.0,0.1438141]
[1723363449743,1.0357479,61409.0,61408.0,0.1438141]
[1723363449953,1.0253264,61409.0,61408.0,0.1438141]
[1723363450155,1.0353264,61409.0,61408.0,0.1438141]
[1723363450334,0.98889892,61409.0,61408.0,0.1438141]
[1723363450536,1.03532619,61409.0,61408.0,0.1438141]
[1723363451333,1.02532619,61409.0,61408.0,0.1438141]
[1723363451532,1.03532619,61409.0,61408.0,0.1438141]
[1723363451739,1.02532619,61409.0,61408.0,0.1438141]
[1723363452149,1.36101119,61409.0,61408.0,0.1438141]
[1723363452354,1.36101119,61409.0,61408.0,0.0779141]
[1723363453112,1.35101119,61409.0,61408.0,0.0779141]
[1723363454583,1.02532619,61409.0,61408.0,0.0779141]
[1723363454792,1.63532619,61409.0,61408.0,0.0779141]
[1723363455531,1.64532619,61409.0,61408.0,0.0779141]
[1723363456503,1.63532619,61409.0,61408.0,0.0779141]
[1723363457001,1.6345911,61409.0,61408.0,0.0779141]
[1723363457808,1.6445911,61409.0,61408.0,0.0779141]
[1723363458002,1.6445911,61409.0,61408.0,0.1408141]
[1723363459035,1.6345911,61409.0,61408.0,0.1408141]
[1723363459885,1.6445911,61409.0,61408.0,0.1408141]
[1723363460066,1.6345911,61409.0,61408.0,0.1408141]
[1723363460508,1.59889892,61409.0,61408.0,0.1408141]
[1723363460710,1.63533051,61409.0,61408.0,0.1408141]
[1723363460929,1.64533049,61409.0,61408.0,0.1408141]
[1723363461346,1.63533049,61409.0,61408.0,0.1408141]
[1723363462131,1.64533049,61409.0,61408.0,0.1408141]
[1723363462706,1.63533049,61409.0,61408.0,0.1408141]
[1723363462918,1.64533049,61409.0,61408.0,0.1408141]
[1723363463152,1.63533049,61409.0,61408.0,0.1408141]
[1723363463546,1.64533049,61409.0,61408.0,0.1408141]
[1723363463719,1.63533049,61409.0,61408.0,0.1408141]
[1723363464046,1.58889892,61409.0,61408.0,0.1408141]
[1723363464181,1.6356344,61409.0,61408.0,0.0019141]
[1723363466133,1.58889892,61409.0,61408.0,0.0019141]
[1723363466281,1.63566984,61409.0,61408.0,0.0019141]
[1723363469595,1.64566984,61409.0,61408.0,0.0019141]
[1723363469804,1.64566984,61409.0,61408.0,0.1463141]
[1723363470752,1.03566984,61409.0,61408.0,0.1463141]
[1723363471016,1.02566984,61409.0,61408.0,0.1463141]
[1723363471171,1.02571428,61409.0,61408.0,0.1463141]
[1723363471730,1.02571202,61409.0,61408.0,0.1463141]
[1723363472575,0.97889892,61409.0,61408.0,0.1463141]
[1723363472981,1.02573781,61409.0,61408.0,0.1463141]
[1723363474076,1.02573781,61409.0,61408.0,0.16714666]
[1723363474657,0.97889892,61409.0,61408.0,0.16714666]
[1723363474875,1.02581927,61409.0,61408.0,0.16714666]
[1723363478282,0.97889892,61409.0,61408.0,0.16714666]
[1723363478459,1.0257212,61409.0,61408.0,0.1463141]
[1723363478945,1.6257212,61409.0,61408.0,0.1463141]
[1723363479758,1.57889892,61409.0,61408.0,0.1463141]
[1723363482535,1.90458392,61409.0,61408.0,0.1463141]
[1723363482655,1.57889892,61409.0,61408.0,0.1463141]
[1723363482850,1.62568488,61409.0,61408.0,0.1463141]
[1723363483311,1.57889892,61409.0,61408.0,0.1463141]
[1723363483610,1.62564816,61409.0,61408.0,0.1463141]
[1723363485499,1.90458392,61409.0,61408.0,0.1463141]
[1723363485658,1.95129188,61409.0,61408.0,0.1463141]
[1723363485832,1.96129188,61409.0,61408.0,0.1463141]
[1723363486030,1.36129314,61409.0,61408.0,0.1463141]
[1723363486270,1.35129314,61409.0,61408.0,0.1463141]
[1723363486879,1.36129314,61409.0,61408.0,0.1463141]
[1723363487080,1.35129314,61409.0,61408.0,0.1463141]
[1723363487575,1.36129314,61409.0,61408.0,0.1463141]
[1723363487978,1.36129314,61409.0,61408.0,0.0823141]
[1723363489208,1.35133239,61409.0,61408.0,0.0823141]
[1723363489563,2.03133239,61409.0,61408.0,0.0823141]
[1723363489763,2.02133239,61409.0,61408.0,0.0823141]
[1723363489975,2.03133239,61409.0,61408.0,0.0823141]
[1723363490086,2.02133239,61409.0,61408.0,0.0823141]
[1723363490555,2.03133239,61409.0,61408.0,0.0823141]
[1723363492834,1.98458392,61409.0,61408.0,0.0823141]
[1723363493041,2.03163223,61409.0,61408.0,0.0823141]
[1723363494134,2.02163223,61409.0,61408.0,0.0823141]
[1723363494340,2.12163223,61409.0,61408.0,0.0823141]
[1723363495490,2.13163223,61409.0,61408.0,0.0823141]
[1723363496911,2.08458392,61409.0,61408.0,0.0823141]
[1723363497116,2.13156776,61409.0,61408.0,0.0823141]
[1723363497319,2.45725276,61409.0,61408.0,0.0823141]
[1723363497535,2.13156776,61409.0,61408.0,0.0823141]
[1723363498164,2.13156322,61409.0,61408.0,0.0823141]
[1723363499056,2.12156322,61409.0,61408.0,0.0823141]
[1723363500198,2.26820402,61409.0,61408.0,0.0823141]
[1723363500608,2.13156322,61409.0,61408.0,0.0823141]
[1723363500810,2.12156322,61409.0,61408.0,0.0823141]
[1723363500938,2.44724822,61409.0,61408.0,0.0823141]
[1723363501217,2.27820183,61409.0,61408.0,0.0823141]
[1723363501422,2.12156322,61409.0,61408.0,0.0823141]
[1723363501605,2.44724822,61409.0,61408.0,0.0823141]
[1723363502028,2.13156322,61409.0,61408.0,0.0823141]
[1723363502206,2.12156322,61409.0,61408.0,0.0823141]
[1723363502825,2.12092653,61409.0,61408.0,0.0823141]
[1723363503027,2.13092653,61409.0,61408.0,0.0823141]
[1723363503252,2.27755594,61409.0,61408.0,0.0823141]
[1723363503470,2.26755594,61409.0,61408.0,0.0823141]
[1723363504491,2.27755594,61409.0,61408.0,0.0823141]
[1723363504668,2.26755594,61409.0,61408.0,0.0823141]
[1723363504850,2.27755594,61409.0,61408.0,0.0823141]
[1723363505267,1.149932,61407.0,61406.0,0.0629]
[1723363505630,1.99008953,61407.0,61406.0,0.0629]
[1723363506104,2.00008953,61407.0,61406.0,0.08373256]
[1723363506345,1.95374692,61407.0,61406.0,0.08373256]
[1723363506581,2.00019403,61407.0,61406.0,0.08373256]
[1723363507067,1.9921551,61407.0,61406.0,0.08373256]
[1723363507560,2.0021551,61407.0,61406.0,0.08373256]
[1723363508273,1.9921551,61407.0,61406.0,0.08373256]
[1723363508473,2.0021551,61407.0,61406.0,0.08373256]
[1723363509145,1.9921551,61407.0,61406.0,0.08373256]
[1723363509461,2.0021551,61407.0,61406.0,0.08373256]
[1723363509895,2.0021331,61407.0,61406.0,0.08373256]
[1723363510022,2.3278281,61407.0,61406.0,0.08373256]
[1723363510404,2.3178281,61407.0,61406.0,0.08373256]
[1723363511048,2.3278281,61407.0,61406.0,0.08373256]
[1723363511566,2.3278281,61407.0,61406.0,0.0638152]
[1723363512373,2.3278281,61407.0,61406.0,0.0009152]
[1723363512617,2.3178281,61407.0,61406.0,0.0009152]
[1723363512818,2.3278281,61407.0,61406.0,0.0009152]
[1723363513018,2.3178281,61407.0,61406.0,0.0009152]
[1723363513225,2.3278281,61407.0,61406.0,0.0009152]
[1723363515383,0.82445,61391.0,61390.0,0.01]
[1723363515599,0.82445,61391.0,61384.0,0.0014141]
[1723363515600,0.01,61385.0,61384.0,0.0014141]
[1723363515804,1.150342,61385.0,61384.0,0.0014141]
[1723363516009,1.150342,61385.0,61380.0,0.01]
[1723363516010,0.824582,61381.0,61380.0,0.01]
[1723363516208,1.150415,61381.0,61380.0,0.01]
[1723363516461,1.24810018,61381.0,61380.0,0.01]
[1723363516686,1.140415,61381.0,61380.0,0.01]
[1723363516888,0.814582,61381.0,61380.0,0.01]
[1723363517100,0.95822463,61381.0,61380.0,0.01]
[1723363517230,0.86054029,61381.0,61380.0,0.01]
[1723363517431,0.86253969,61381.0,61380.0,0.01]
[1723363517654,0.87412431,61381.0,61380.0,0.01]
[1723363518290,0.82816662,61381.0,61380.0,0.1581]
[1723363519440,0.87694626,61381.0,61380.0,0.1581]
[1723363519676,0.87694626,61381.0,61380.0,0.01]
[1723363519677,1.31069962,61381.0,61380.0,0.01]
[1723363519789,1.42983806,61381.0,61380.0,0.01]
[1723363519987,1.35664335,61381.0,61380.0,0.01]
[1723363520227,1.36358909,61381.0,61380.0,0.01]
[1723363520650,1.3634839,61381.0,61380.0,0.01]
[1723363521261,1.20983816,61381.0,61380.0,0.01]
[1723363521480,1.20983816,61381.0,61372.0,0.0648]
[1723363521481,0.172932,61375.0,61372.0,0.0648]
[1723363521657,0.814662,61375.0,61372.0,0.0648]
[1723363522091,0.814662,61375.0,61371.0,0.0001]
[1723363522092,0.824702,61372.0,61371.0,0.0001]
[1723363522264,0.87345173,61372.0,61371.0,0.0001]
[1723363522450,1.26933718,61372.0,61371.0,0.0001]
[1723363522654,1.19621258,61372.0,61371.0,0.0001]
[1723363522913,1.26931875,61372.0,61371.0,0.0001]
[1723363523279,1.3630275,61372.0,61371.0,0.0011]
[1723363523480,1.3600275,61372.0,61371.0,0.0001]
[1723363523920,1.3630275,61372.0,61371.0,0.0011]
[1723363524316,0.162975,61359.0,61358.0,0.0656]
[1723363524515,0.824875,61359.0,61358.0,0.0656]
[1723363524719,1.150825,61359.0,61358.0,0.0656]
[1723363525051,0.814915,61356.0,61355.0,0.0762]
[1723363525454,0.01,61353.0,61352.0,0.0762]
[1723363525576,0.48898,61352.0,61351.0,0.0657]
[1723363525780,0.824967,61352.0,61351.0,0.0657]
[1723363526185,0.814967,61352.0,61351.0,0.0657]
[1723363526559,0.824967,61352.0,61351.0,0.0657]
[1723363526680,0.824967,61352.0,61351.0,0.0747]
[1723363526681,0.815967,61352.0,61351.0,0.0747]
[1723363527305,0.814967,61352.0,61351.0,0.0001]
[1723363527512,0.82672134,61352.0,61351.0,0.0111]
[1723363527931,0.814967,61352.0,61351.0,0.0111]
[1723363528196,0.814967,61352.0,61351.0,0.0141]
[1723363528596,0.814967,61352.0,61351.0,0.0031]
[1723363529102,0.814967,61352.0,61351.0,0.0071]
[1723363530072,0.48898,61352.0,61351.0,0.0071]
[1723363530274,0.48898,61352.0,61351.0,0.1489]
[1723363532499,0.48898,61352.0,61351.0,0.0727]
[1723363533545,0.48898,61352.0,61351.0,0.0071]
[1723363534279,0.56728,61352.0,61351.0,0.0071]
[1723363534492,0.893267,61352.0,61351.0,0.0071]
[1723363534907,0.903267,61352.0,61351.0,0.0071]
[1723363535584,0.893267,61352.0,61351.0,0.0071]
[1723363535776,0.893267,61352.0,61351.0,0.0031]
[1723363535918,0.56728,61352.0,61351.0,0.0031]
[1723363536120,0.66827178,61352.0,61351.0,0.0031]
[1723363536345,0.57128,61352.0,61351.0,0.0001]
[1723363536567,1.07898,61352.0,61351.0,0.0001]
[1723363537429,0.007,61351.0,61348.0,0.0009152]
[1723363537606,0.163001,61349.0,61348.0,0.0009152]
[1723363538026,0.97882192,61349.0,61348.0,0.0009152]
[1723363538230,1.47882192,61349.0,61348.0,0.0009152]
[1723363538435,1.80482492,61349.0,61348.0,0.0009152]
[1723363538626,1.97097462,61349.0,61348.0,0.0009152]
[1723363539475,1.82982492,61349.0,61348.0,0.0009152]
[1723363539689,1.82282492,61349.0,61348.0,0.0009152]
[1723363540091,1.83282492,61349.0,61348.0,0.0009152]
[1723363540298,1.82282492,61349.0,61348.0,0.0009152]
[1723363540505,1.83282492,61349.0,61348.0,0.0009152]
[1723363540921,1.90942492,61349.0,61348.0,0.0009152]
[1723363541126,1.89942492,61349.0,61348.0,0.0009152]
[1723363541339,2.06357462,61349.0,61348.0,0.0009152]
[1723363541546,1.89942492,61349.0,61348.0,0.0009152]
[1723363543155,2.32542792,61349.0,61348.0,0.0009152]
[1723363543734,2.37318662,61349.0,61348.0,0.0009152]
[1723363544085,1.97342492,61349.0,61348.0,0.0009152]
[1723363544417,1.90382492,61349.0,61348.0,0.0019152]
[1723363544771,1.90182492,61349.0,61348.0,0.0019152]
[1723363545139,1.90682492,61349.0,61348.0,0.0029152]
[1723363545752,2.08097462,61349.0,61348.0,0.0029152]
[1723363546138,1.90682492,61349.0,61348.0,0.0029152]
[1723363547957,1.90682492,61349.0,61348.0,0.1426152]
[1723363548370,1.95480274,61349.0,61348.0,0.1426152]
[1723363548673,2.03280274,61349.0,61348.0,0.0029152]
[1723363548931,2.03292416,61349.0,61348.0,0.0029152]
[1723363549458,1.95492416,61349.0,61348.0,0.0029152]
[1723363550276,2.11907386,61349.0,61348.0,0.0029152]
[1723363550692,1.95492416,61349.0,61348.0,0.0029152]
[1723363550892,1.96492416,61349.0,61348.0,0.0029152]
[1723363551539,1.98792416,61349.0,61348.0,0.0029152]
[1723363552329,1.97792416,61349.0,61348.0,0.0029152]
[1723363552535,1.97819172,61349.0,61348.0,0.0029152]
[1723363553289,2.14234142,61349.0,61348.0,0.0029152]
[1723363553748,2.15234142,61349.0,61348.0,0.0029152]
[1723363554082,2.29624142,61349.0,61348.0,0.0029152]
[1723363554281,2.28624142,61349.0,61348.0,0.0029152]
[1723363555322,1.141028,61348.0,61347.0,0.009141]
[1723363555495,2.08620972,61348.0,61347.0,0.009141]
[1723363556200,2.08610428,61348.0,61347.0,0.009141]
[1723363556562,2.09410428,61348.0,61347.0,0.010141]
[1723363557465,2.09410428,61348.0,61347.0,0.011141]
[1723363557466,2.09910428,61348.0,61347.0,0.011141]
[1723363557673,2.10910428,61348.0,61347.0,0.011141]
[1723363557956,2.09910428,61348.0,61347.0,0.011141]
[1723363559752,2.09905143,61348.0,61347.0,0.011141]
[1723363560313,2.09878829,61348.0,61347.0,0.011141]
[1723363562388,2.09914928,61348.0,61347.0,0.011141]
[1723363565046,2.14787771,61348.0,61347.0,0.011141]
[1723363565242,2.33639163,61348.0,61347.0,0.011141]
[1723363565446,2.33642688,61348.0,61347.0,0.011141]
[1723363565847,2.28812052,61348.0,61347.0,0.011141]
[1723363566074,2.3368739,61348.0,61347.0,0.011141]
[1723363566253,2.44760107,61348.0,61347.0,0.011141]
[1723363567239,2.3500972,61348.0,61347.0,0.011141]
[1723363567460,2.3500972,61348.0,61347.0,0.078241]
[1723363567461,2.1959475,61348.0,61347.0,0.078241]
[1723363567663,2.23160471,61348.0,61347.0,0.078241]
[1723363567865,2.1095963,61348.0,61347.0,0.078241]
[1723363568018,2.22160471,61348.0,61347.0,0.078241]
[1723363568226,2.18641081,61348.0,61347.0,0.078241]
[1723363568692,2.25367823,61348.0,61347.0,0.078241]
[1723363569261,2.19641081,61348.0,61347.0,0.078241]
[1723363569479,2.18641081,61348.0,61347.0,0.011141]
[1723363569940,2.18749685,61348.0,61347.0,0.011141]
[1723363570303,2.19749685,61348.0,61347.0,0.011141]
[1723363570474,2.18749685,61348.0,61347.0,0.011141]
[1723363570885,2.19749685,61348.0,61347.0,0.011141]
[1723363571041,2.18749685,61348.0,61347.0,0.011141]
[1723363571443,2.36164655,61348.0,61347.0,0.011141]
[1723363571661,2.35164655,61348.0,61347.0,0.011141]
[1723363572982,2.35127447,61348.0,61347.0,0.011141]
[1723363573380,2.41357447,61348.0,61347.0,0.011141]
[1723363573960,2.57811226,61348.0,61347.0,0.011141]
[1723363574450,2.58811226,61348.0,61347.0,0.011141]
[1723363574961,2.57011226,61348.0,61347.0,0.010141]
[1723363575467,2.66081226,61348.0,61347.0,0.011141]
[1723363575599,2.66164426,61348.0,61347.0,0.011141]
[1723363575819,2.65664426,61348.0,61347.0,0.010141]
[1723363576018,2.66964426,61348.0,61347.0,0.011141]
[1723363576400,2.67964426,61348.0,61347.0,0.011141]
[1723363576605,2.54336241,61348.0,61347.0,0.011141]
[1723363576877,2.60800083,61348.0,61347.0,0.011141]
[1723363577090,2.61800083,61348.0,61347.0,0.011141]
[1723363577285,2.60800083,61348.0,61347.0,0.011141]
[1723363577487,1.141049,61347.0,61346.0,0.009141]
[1723363577752,2.40392723,61347.0,61346.0,0.009141]
[1723363578196,2.23895204,61347.0,61346.0,0.009141]
[1723363578598,2.24995204,61347.0,61346.0,0.009141]
[1723363579202,2.26195204,61347.0,61346.0,0.010141]
[1723363580024,2.33025204,61347.0,61346.0,0.010141]
[1723363581019,2.47780359,61347.0,61346.0,0.010141]
[1723363581438,2.48902076,61347.0,61346.0,0.010141]
[1723363582282,2.42402076,61347.0,61346.0,0.010141]
[1723363582439,2.33902076,61347.0,61346.0,0.010141]
[1723363583840,2.27072076,61347.0,61346.0,0.010141]
[1723363583975,2.33902076,61347.0,61346.0,0.010141]
[1723363584411,2.17573266,61347.0,61346.0,0.010141]
[1723363584573,2.18573266,61347.0,61346.0,0.090341]
[1723363584774,2.30273266,61347.0,61346.0,0.158641]
[1723363584999,2.29273266,61347.0,61346.0,0.158641]
[1723363585204,2.30273266,61347.0,61346.0,0.158641]
[1723363586486,2.29273266,61347.0,61346.0,0.158641]
[1723363587373,2.29273266,61347.0,61346.0,0.078441]
[1723363587582,2.29273266,61347.0,61346.0,0.010141]
[1723363587703,2.46688236,61347.0,61346.0,0.010141]
[1723363588100,2.48988236,61347.0,61346.0,0.010141]
[1723363588304,2.47988236,61347.0,61346.0,0.010141]
[1723363588523,2.31573266,61347.0,61346.0,0.010141]
[1723363588735,2.31573266,61347.0,61346.0,0.158641]
[1723363589614,2.30273266,61347.0,61346.0,0.158641]
[1723363589826,2.46785596,61347.0,61346.0,0.158641]
[1723363590026,2.30273266,61347.0,61346.0,0.158641]
[1723363590226,2.21646909,61347.0,61346.0,0.158641]
[1723363591352,1.88045509,61347.0,61346.0,0.158641]
[1723363592567,0.96461217,61347.0,61346.0,0.168641]
[1723363592782,0.303395,61347.0,61346.0,0.168641]
[1723363592973,0.072088,61347.0,61346.0,0.178641]
[1723363593153,0.072088,61347.0,61346.0,0.26048746]
[1723363593314,0.023,61347.0,61346.0,0.26048746]
[1723363593511,0.05990146,61347.0,61346.0,0.25948746]
[1723363593727,0.07190146,61347.0,61346.0,0.26048746]
[1723363593969,0.07190146,61347.0,61346.0,0.25048746]
[1723363593970,0.012,61347.0,61346.0,0.25048746]
[1723363594142,0.000832,61348.0,61347.0,0.1585]
[1723363594324,0.000832,61348.0,61347.0,0.1485]
[1723363595843,0.00073778,61348.0,61347.0,0.1717599]
[1723363595958,0.00373778,61348.0,61347.0,0.3347669]
[1723363596162,0.000833,61351.0,61350.0,0.02]
[1723363596422,0.000833,61351.0,61350.0,2.08617128]
[1723363596821,0.000833,61351.0,61350.0,2.40216928]
[1723363597245,0.04883033,61366.0,61358.0,0.1485]
[1723363597447,0.04883033,61366.0,61365.0,0.23034646]
[1723363597800,0.04879806,61366.0,61365.0,0.23034646]
[1723363598218,0.162955,61367.0,61365.0,0.16204646]
[1723363598421,0.04879806,61368.0,61367.0,0.1711]
[1723363598620,0.000832,61371.0,61369.0,0.1511]
[1723363598841,0.000832,61371.0,61370.0,0.1511]
[1723363599372,0.489661,61371.0,61370.0,0.1611]
[1723363599609,0.825547,61371.0,61370.0,0.1511]
[1723363599803,0.815547,61371.0,61370.0,0.1511]
[1723363600012,0.162956,61366.0,61365.0,0.0663]
[1723363600208,0.162956,61366.0,61365.0,0.0763]
[1723363600410,0.488869,61366.0,61365.0,0.0663]
[1723363600550,0.162956,61366.0,61365.0,0.0663]
[1723363600753,0.162956,61366.0,61365.0,0.0673]
[1723363601328,0.170956,61366.0,61365.0,0.0673]
[1723363601695,0.66968392,61366.0,61365.0,0.0683]
[1723363605559,0.179956,61366.0,61365.0,0.0683]
[1723363606180,0.51702768,61366.0,61365.0,0.0683]
[1723363608084,0.19111468,61366.0,61365.0,0.0783]
[1723363608261,0.017,61366.0,61365.0,0.1648]
[1723363612519,0.017832,61366.0,61365.0,0.1648]
[1723363612709,0.180788,61366.0,61365.0,0.1648]
[1723363613318,0.017832,61366.0,61365.0,0.1648]
[1723363614704,0.180788,61366.0,61365.0,0.1648]
[1723363614905,0.017832,61366.0,61365.0,0.1648]
[1723363615233,0.506701,61366.0,61365.0,0.002]
[1723363615551,0.832614,61366.0,61365.0,0.002]
[1723363617298,0.506701,61366.0,61365.0,0.002]
[1723363619649,0.506701,61366.0,61365.0,0.0855]